[Event "Titled Tuesday Blitz March 01 Early 2022"]
[White "Shuvalov, Evgenij"]
[Black "Mirzanurov, Bulat"]
[WhiteFideId "4187237"]
[BlackFideId "4184521"]
[WhiteElo "2119"]
[BlackElo "2116"]
[Result "1-0"]
[Round "02"]
[TimeControl "180+1"]
[Date "2022.03.01"]
[WhiteClock "0:01:10"]
[BlackClock "0:00:33"]

1. Nf3 {[%clk 0:03:00]}  d5 {[%clk 0:02:59]} 2. c4 {[%clk 0:02:59]}  dxc4 {[%clk 0:02:58]} 3. e3 {[%clk 0:02:59]}  Nf6 {[%clk 0:02:57]} 4. Bxc4 {[%clk 0:02:58]}  e6 {[%clk 0:02:54]} 5. b3 {[%clk 0:02:55]}  a6 {[%clk 0:02:53]} 6. Bb2 {[%clk 0:02:52]}  c5 {[%clk 0:02:50]} 7. Nc3 {[%clk 0:02:42]}  b5 {[%clk 0:02:45]} 8. Be2 {[%clk 0:02:41]}  Bb7 {[%clk 0:02:43]} 9. Qc2 {[%clk 0:02:39]}  Nbd7 {[%clk 0:02:37]} 10. a4 {[%clk 0:02:34]}  b4 {[%clk 0:02:36]} 11. Nb1 {[%clk 0:02:34]}  Be7 {[%clk 0:02:33]} 12. d3 {[%clk 0:02:33]}  O-O {[%clk 0:02:31]} 13. Nbd2 {[%clk 0:02:33]}  Nb6 {[%clk 0:02:14]} 14. a5 {[%clk 0:02:26]}  Nbd5 {[%clk 0:02:10]} 15. Nc4 {[%clk 0:02:23]}  Re8 {[%clk 0:02:02]} 16. O-O {[%clk 0:02:21]}  h6 {[%clk 0:01:59]} 17. Rfd1 {[%clk 0:02:14]}  Rc8 {[%clk 0:01:53]} 18. Nfe5 {[%clk 0:02:08]}  Bf8 {[%clk 0:01:32]} 19. Bf3 {[%clk 0:02:04]}  Qc7 {[%clk 0:01:28]} 20. h3 {[%clk 0:01:57]}  Bd6 {[%clk 0:01:15]} 21. e4 {[%clk 0:01:25]}  Ne7 {[%clk 0:00:56]} 22. Nxf7 {[%clk 0:01:22]}  Kxf7 {[%clk 0:00:52]} 23. e5 {[%clk 0:01:20]}  Bxe5 {[%clk 0:00:39]} 24. Bxe5 {[%clk 0:01:11]}  Qd7 {[%clk 0:00:33]} 25. Bxb7 {[%clk 0:01:10]} 1-0


[Site "https://www.chess.com"]

[Event "Titled Tuesday Blitz March 01 Early 2022"]
[White "Shuvalova, Polina"]
[Black "Zhigalko, Sergei"]
[WhiteFideId "24171760"]
[BlackFideId "13502956"]
[WhiteElo "2631"]
[BlackElo "2921"]
[Result "1-0"]
[Round "02"]
[TimeControl "180+1"]
[Date "2022.03.01"]
[WhiteClock "0:00:04"]
[BlackClock "0:00:02"]

1. d4 {[%clk 0:03:00]}  Nf6 {[%clk 0:02:57]} 2. Nf3 {[%clk 0:03:00]}  e6 {[%clk 0:02:56]} 3. Bf4 {[%clk 0:02:59]}  d5 {[%clk 0:02:53]} 4. e3 {[%clk 0:02:57]}  Bd6 {[%clk 0:02:53]} 5. Nbd2 {[%clk 0:02:55]}  O-O {[%clk 0:02:53]} 6. c3 {[%clk 0:02:52]}  b6 {[%clk 0:02:53]} 7. Bd3 {[%clk 0:02:46]}  Ba6 {[%clk 0:02:49]} 8. Bxa6 {[%clk 0:02:44]}  Nxa6 {[%clk 0:02:49]} 9. O-O {[%clk 0:02:42]}  c5 {[%clk 0:02:46]} 10. Bxd6 {[%clk 0:02:38]}  Qxd6 {[%clk 0:02:46]} 11. Ne5 {[%clk 0:02:39]}  b5 {[%clk 0:02:42]} 12. Qe2 {[%clk 0:02:33]}  Rab8 {[%clk 0:02:40]} 13. a3 {[%clk 0:02:21]}  Rfc8 {[%clk 0:02:20]} 14. Rfc1 {[%clk 0:02:09]}  c4 {[%clk 0:01:52]} 15. f4 {[%clk 0:02:01]}  Nc7 {[%clk 0:01:49]} 16. Kh1 {[%clk 0:01:58]}  a5 {[%clk 0:01:46]} 17. g4 {[%clk 0:01:47]}  Ne4 {[%clk 0:01:34]} 18. Nxe4 {[%clk 0:01:29]}  dxe4 {[%clk 0:01:34]} 19. g5 {[%clk 0:01:30]}  Nd5 {[%clk 0:01:34]} 20. Re1 {[%clk 0:01:03]}  Rc7 {[%clk 0:01:21]} 21. Qg2 {[%clk 0:01:01]}  b4 {[%clk 0:01:17]} 22. axb4 {[%clk 0:01:01]}  axb4 {[%clk 0:01:18]} 23. Rac1 {[%clk 0:00:47]}  bxc3 {[%clk 0:01:17]} 24. bxc3 {[%clk 0:00:48]}  Qa3 {[%clk 0:00:58]} 25. Qxe4 {[%clk 0:00:42]}  Nxc3 {[%clk 0:00:53]} 26. Qf3 {[%clk 0:00:41]}  Qb2 {[%clk 0:00:14]} 27. f5 {[%clk 0:00:34]}  exf5 {[%clk 0:00:13]} 28. Qxf5 {[%clk 0:00:32]}  Nd5 {[%clk 0:00:06]} 29. Rb1 {[%clk 0:00:28]}  c3 {[%clk 0:00:04]} 30. Rxb2 {[%clk 0:00:27]}  cxb2 {[%clk 0:00:05]} 31. Kg1 {[%clk 0:00:06]}  Nc3 {[%clk 0:00:04]} 32. Kg2 {[%clk 0:00:04]}  b1=Q {[%clk 0:00:04]} 33. Rxb1 {[%clk 0:00:04]}  Nxb1 {[%clk 0:00:05]} 34. Qf4 {[%clk 0:00:04]}  Rf8 {[%clk 0:00:03]} 35. h4 {[%clk 0:00:04]}  Nc3 {[%clk 0:00:03]} 36. h5 {[%clk 0:00:05]}  Nd5 {[%clk 0:00:03]} 37. Qf3 {[%clk 0:00:05]}  Rc2+ {[%clk 0:00:02]} 38. Kg3 {[%clk 0:00:05]}  Nc3 {[%clk 0:00:02]} 39. h6 {[%clk 0:00:04]}  g6 {[%clk 0:00:01]} 40. Kh3 {[%clk 0:00:02]}  Re2 {[%clk 0:00:01]} 41. Qf6 {[%clk 0:00:02]}  Rxe3+ {[%clk 0:00:01]} 42. Kg2 {[%clk 0:00:03]}  Rg3+ {[%clk 0:00:01]} 43. Kh1 {[%clk 0:00:03]}  Rh3+ {[%clk 0:00:01]} 44. Kg1 {[%clk 0:00:03]}  Rg3+ {[%clk 0:00:02]} 45. Kh2 {[%clk 0:00:04]} 1-0


[Site "https://www.chess.com"]

[Event "Titled Tuesday Blitz March 01 Early 2022"]
[White "Sinitsina, Anastassia"]
[Black "Bongo Akanga Ndjila, Barthelemy"]
[WhiteFideId "4504640"]
[BlackFideId "10609431"]
[WhiteElo "2144"]
[BlackElo "1803"]
[Result "1-0"]
[Round "02"]
[TimeControl "180+1"]
[Date "2022.03.01"]
[WhiteClock "0:01:17"]
[BlackClock "0:01:51"]

1. Nf3 {[%clk 0:03:00]}  d6 {[%clk 0:02:58]} 2. g3 {[%clk 0:03:01]}  g6 {[%clk 0:02:58]} 3. Bg2 {[%clk 0:03:01]}  Bg7 {[%clk 0:02:59]} 4. O-O {[%clk 0:03:01]}  Nf6 {[%clk 0:02:59]} 5. d4 {[%clk 0:03:01]}  c6 {[%clk 0:02:59]} 6. c4 {[%clk 0:03:01]}  d5 {[%clk 0:02:56]} 7. cxd5 {[%clk 0:02:58]}  cxd5 {[%clk 0:02:53]} 8. Ne5 {[%clk 0:02:58]}  O-O {[%clk 0:02:53]} 9. Nc3 {[%clk 0:02:58]}  Nc6 {[%clk 0:02:50]} 10. Bf4 {[%clk 0:02:56]}  Nh5 {[%clk 0:02:41]} 11. Nxd5 {[%clk 0:02:42]}  Nxf4 {[%clk 0:02:34]} 12. Nxc6 {[%clk 0:02:25]}  bxc6 {[%clk 0:02:30]} 13. Nxf4 {[%clk 0:02:25]}  Qxd4 {[%clk 0:02:19]} 14. Bxc6 {[%clk 0:01:47]}  Rb8 {[%clk 0:02:16]} 15. Qxd4 {[%clk 0:01:36]}  Bxd4 {[%clk 0:02:14]} 16. Rfd1 {[%clk 0:01:27]}  Bxb2 {[%clk 0:02:11]} 17. Rab1 {[%clk 0:01:26]}  Be5 {[%clk 0:02:10]} 18. Rxb8 {[%clk 0:01:25]}  Bxb8 {[%clk 0:02:09]} 19. Nd5 {[%clk 0:01:25]}  Bd6 {[%clk 0:02:05]} 20. Nf6+ {[%clk 0:01:18]}  Kg7 {[%clk 0:02:02]} 21. Ne8+ {[%clk 0:01:18]}  Kh8 {[%clk 0:01:51]} 22. Nxd6 {[%clk 0:01:18]}  Rd8 {[%clk 0:01:51]} 23. Nxf7+ {[%clk 0:01:17]} 1-0


[Site "https://www.chess.com"]

[Event "Titled Tuesday Blitz March 01 Early 2022"]
[White "Siva Mahadevan"]
[Black "Tsyhanchuk, Stanislav"]
[WhiteFideId "25043153"]
[BlackFideId "13505130"]
[WhiteElo "2203"]
[BlackElo "2078"]
[Result "1-0"]
[Round "02"]
[TimeControl "180+1"]
[Date "2022.03.01"]
[WhiteClock "0:02:33"]
[BlackClock "0:00:32"]

1. e4 {[%clk 0:02:55]}  c5 {[%clk 0:02:59]} 2. Nf3 {[%clk 0:02:56]}  d6 {[%clk 0:02:58]} 3. d4 {[%clk 0:02:56]}  cxd4 {[%clk 0:02:56]} 4. Nxd4 {[%clk 0:02:57]}  Nf6 {[%clk 0:02:57]} 5. Nc3 {[%clk 0:02:58]}  a6 {[%clk 0:02:58]} 6. Bg5 {[%clk 0:02:57]}  e6 {[%clk 0:02:53]} 7. f4 {[%clk 0:02:57]}  Qb6 {[%clk 0:02:52]} 8. Qd2 {[%clk 0:02:57]}  Qxb2 {[%clk 0:02:52]} 9. Rb1 {[%clk 0:02:56]}  Qa3 {[%clk 0:02:51]} 10. e5 {[%clk 0:02:57]}  dxe5 {[%clk 0:02:50]} 11. fxe5 {[%clk 0:02:58]}  h6 {[%clk 0:02:50]} 12. Bh4 {[%clk 0:02:58]}  g5 {[%clk 0:02:50]} 13. Bf2 {[%clk 0:02:57]}  Ng4 {[%clk 0:02:49]} 14. Bg3 {[%clk 0:02:57]}  Nd7 {[%clk 0:02:47]} 15. Be2 {[%clk 0:02:56]}  Ngxe5 {[%clk 0:02:44]} 16. O-O {[%clk 0:02:54]}  Bg7 {[%clk 0:02:22]} 17. Nxe6 {[%clk 0:02:54]}  fxe6 {[%clk 0:02:16]} 18. Ne4 {[%clk 0:02:54]}  Ke7 {[%clk 0:01:31]} 19. Rb3 {[%clk 0:02:41]}  Qa4 {[%clk 0:01:25]} 20. Qd6+ {[%clk 0:02:41]}  Ke8 {[%clk 0:01:25]} 21. Bh5+ {[%clk 0:02:41]}  Kd8 {[%clk 0:01:23]} 22. Nc5 {[%clk 0:02:42]}  Nf3+ {[%clk 0:01:08]} 23. Kh1 {[%clk 0:02:39]}  Qc4 {[%clk 0:00:38]} 24. Nxe6+ {[%clk 0:02:38]}  Qxe6 {[%clk 0:00:37]} 25. Qxe6 {[%clk 0:02:39]}  Nd4 {[%clk 0:00:35]} 26. Qd6 {[%clk 0:02:33]}  Nxb3 {[%clk 0:00:33]} 27. Qc7+ {[%clk 0:02:31]}  Ke7 {[%clk 0:00:32]} 28. Bd6+ {[%clk 0:02:32]}  Ke6 {[%clk 0:00:32]} 29. Bf7# {[%clk 0:02:33]} 1-0


[Site "https://www.chess.com"]

[Event "Titled Tuesday Blitz March 01 Early 2022"]
[White "Sovetbekova, Nurai"]
[Black "Dolzhykova, Kateryna"]
[WhiteFideId "13801910"]
[BlackFideId "14113414"]
[WhiteElo "1545"]
[BlackElo "2165"]
[Result "1/2-1/2"]
[Round "02"]
[TimeControl "180+1"]
[Date "2022.03.01"]
[WhiteClock "0:00:05"]
[BlackClock "0:00:10"]

1. d4 {[%clk 0:03:00]}  Nf6 {[%clk 0:02:59]} 2. c4 {[%clk 0:02:58]}  e6 {[%clk 0:02:58]} 3. g3 {[%clk 0:02:57]}  d5 {[%clk 0:02:58]} 4. Bg2 {[%clk 0:02:55]}  Be7 {[%clk 0:02:59]} 5. Nf3 {[%clk 0:02:55]}  O-O {[%clk 0:02:58]} 6. O-O {[%clk 0:02:55]}  dxc4 {[%clk 0:02:59]} 7. Ne5 {[%clk 0:02:53]}  Nc6 {[%clk 0:03:00]} 8. Nxc6 {[%clk 0:02:48]}  bxc6 {[%clk 0:03:00]} 9. Na3 {[%clk 0:02:47]}  Ba6 {[%clk 0:02:54]} 10. Qa4 {[%clk 0:02:37]}  Bxa3 {[%clk 0:02:45]} 11. Qxa6 {[%clk 0:02:33]}  Be7 {[%clk 0:02:36]} 12. Qxc4 {[%clk 0:02:22]}  Nd5 {[%clk 0:02:34]} 13. Rd1 {[%clk 0:02:10]}  Rb8 {[%clk 0:02:32]} 14. a3 {[%clk 0:02:06]}  Qd7 {[%clk 0:02:29]} 15. Qc2 {[%clk 0:02:02]}  Rfd8 {[%clk 0:02:17]} 16. Bd2 {[%clk 0:01:47]}  Bf6 {[%clk 0:02:09]} 17. e3 {[%clk 0:01:44]}  e5 {[%clk 0:02:04]} 18. dxe5 {[%clk 0:01:41]}  Bxe5 {[%clk 0:02:05]} 19. Bc3 {[%clk 0:01:32]}  Bxc3 {[%clk 0:01:59]} 20. bxc3 {[%clk 0:01:33]}  Qe6 {[%clk 0:01:58]} 21. Rd4 {[%clk 0:01:16]}  c5 {[%clk 0:01:38]} 22. Re4 {[%clk 0:00:56]}  Qf6 {[%clk 0:01:38]} 23. Rc4 {[%clk 0:00:49]}  Qe7 {[%clk 0:01:24]} 24. Rd1 {[%clk 0:00:46]}  Nf6 {[%clk 0:01:22]} 25. Ra4 {[%clk 0:00:37]}  Rxd1+ {[%clk 0:01:09]} 26. Qxd1 {[%clk 0:00:38]}  Rd8 {[%clk 0:01:09]} 27. Qe2 {[%clk 0:00:37]}  g6 {[%clk 0:01:01]} 28. Rxa7 {[%clk 0:00:33]}  Ne4 {[%clk 0:00:45]} 29. Bxe4 {[%clk 0:00:20]}  Qxe4 {[%clk 0:00:46]} 30. Rxc7 {[%clk 0:00:17]}  Rb8 {[%clk 0:00:46]} 31. Rd7 {[%clk 0:00:16]}  Qa4 {[%clk 0:00:41]} 32. Rd1 {[%clk 0:00:14]}  Qxa3 {[%clk 0:00:40]} 33. Qc4 {[%clk 0:00:13]}  Qb3 {[%clk 0:00:24]} 34. Qxb3 {[%clk 0:00:12]}  Rxb3 {[%clk 0:00:25]} 35. Rc1 {[%clk 0:00:12]}  Rb2 {[%clk 0:00:25]} 36. Kg2 {[%clk 0:00:11]}  Kg7 {[%clk 0:00:24]} 37. Kf3 {[%clk 0:00:11]}  Kf6 {[%clk 0:00:24]} 38. e4 {[%clk 0:00:11]}  Ke5 {[%clk 0:00:24]} 39. Ke3 {[%clk 0:00:11]}  f5 {[%clk 0:00:22]} 40. f4+ {[%clk 0:00:11]}  Ke6 {[%clk 0:00:23]} 41. exf5+ {[%clk 0:00:09]}  Kxf5 {[%clk 0:00:21]} 42. h3 {[%clk 0:00:08]}  h5 {[%clk 0:00:19]} 43. Kd3 {[%clk 0:00:07]}  Rg2 {[%clk 0:00:19]} 44. Kc4 {[%clk 0:00:06]}  Rxg3 {[%clk 0:00:19]} 45. Kxc5 {[%clk 0:00:07]}  Rxh3 {[%clk 0:00:18]} 46. Kd4 {[%clk 0:00:05]}  Rf3 {[%clk 0:00:17]} 47. c4 {[%clk 0:00:05]}  Rxf4+ {[%clk 0:00:18]} 48. Kd5 {[%clk 0:00:05]}  Rf2 {[%clk 0:00:17]} 49. c5 {[%clk 0:00:05]}  Rd2+ {[%clk 0:00:17]} 50. Kc4 {[%clk 0:00:04]}  h4 {[%clk 0:00:17]} 51. c6 {[%clk 0:00:04]}  Rd8 {[%clk 0:00:18]} 52. c7 {[%clk 0:00:04]}  Rc8 {[%clk 0:00:18]} 53. Kd3 {[%clk 0:00:05]}  Kg4 {[%clk 0:00:16]} 54. Ke2 {[%clk 0:00:05]}  g5 {[%clk 0:00:16]} 55. Kf2 {[%clk 0:00:05]}  Kh5 {[%clk 0:00:16]} 56. Kg2 {[%clk 0:00:05]}  Kg4 {[%clk 0:00:15]} 57. Rc4+ {[%clk 0:00:05]}  Kf5 {[%clk 0:00:15]} 58. Rc5+ {[%clk 0:00:05]}  Kf4 {[%clk 0:00:15]} 59. Rc4+ {[%clk 0:00:04]}  Kf5 {[%clk 0:00:15]} 60. Rc5+ {[%clk 0:00:05]}  Kf6 {[%clk 0:00:16]} 61. Kh3 {[%clk 0:00:04]}  Ke6 {[%clk 0:00:12]} 62. Kg4 {[%clk 0:00:03]}  Kd6 {[%clk 0:00:12]} 63. Rxg5 {[%clk 0:00:03]}  Rxc7 {[%clk 0:00:11]} 64. Kxh4 {[%clk 0:00:04]}  Rc4+ {[%clk 0:00:12]} 65. Rg4 {[%clk 0:00:04]}  Rc1 {[%clk 0:00:12]} 66. Rg5 {[%clk 0:00:04]}  Ke6 {[%clk 0:00:12]} 67. Kg4 {[%clk 0:00:05]}  Kf6 {[%clk 0:00:13]} 68. Rf5+ {[%clk 0:00:05]}  Ke6 {[%clk 0:00:14]} 69. Rf3 {[%clk 0:00:06]}  Rc4+ {[%clk 0:00:13]} 70. Rf4 {[%clk 0:00:06]}  Rc3 {[%clk 0:00:14]} 71. Rf3 {[%clk 0:00:07]}  Rc1 {[%clk 0:00:14]} 72. Rf4 {[%clk 0:00:07]}  Rg1+ {[%clk 0:00:15]} 73. Kf3 {[%clk 0:00:08]}  Ke5 {[%clk 0:00:15]} 74. Re4+ {[%clk 0:00:08]}  Kd5 {[%clk 0:00:15]} 75. Rf4 {[%clk 0:00:09]}  Kd6 {[%clk 0:00:14]} 76. Rg4 {[%clk 0:00:09]}  Rf1+ {[%clk 0:00:14]} 77. Ke2 {[%clk 0:00:08]}  Rf5 {[%clk 0:00:13]} 78. Ke3 {[%clk 0:00:09]}  Kd5 {[%clk 0:00:13]} 79. Rd4+ {[%clk 0:00:08]}  Kc5 {[%clk 0:00:13]} 80. Rf4 {[%clk 0:00:07]}  Rh5 {[%clk 0:00:14]} 81. Ke4 {[%clk 0:00:08]}  Rh1 {[%clk 0:00:13]} 82. Rf5+ {[%clk 0:00:08]}  Kc4 {[%clk 0:00:13]} 83. Rf4 {[%clk 0:00:07]}  Re1+ {[%clk 0:00:13]} 84. Kf5+ {[%clk 0:00:08]}  Kd5 {[%clk 0:00:13]} 85. Ra4 {[%clk 0:00:07]}  Rf1+ {[%clk 0:00:13]} 86. Kg5 {[%clk 0:00:07]}  Kc6 {[%clk 0:00:09]} 87. Rc4+ {[%clk 0:00:06]}  Kd5 {[%clk 0:00:09]} 88. Rc2 {[%clk 0:00:07]}  Ke4 {[%clk 0:00:08]} 89. Rc4+ {[%clk 0:00:07]}  Ke5 {[%clk 0:00:08]} 90. Ra4 {[%clk 0:00:06]}  Rg1+ {[%clk 0:00:08]} 91. Rg4 {[%clk 0:00:06]}  Rb1 {[%clk 0:00:07]} 92. Rg2 {[%clk 0:00:05]}  Rb8 {[%clk 0:00:07]} 93. Re2+ {[%clk 0:00:05]}  Kd4 {[%clk 0:00:06]} 94. Rd2+ {[%clk 0:00:06]}  Ke3 {[%clk 0:00:06]} 95. Ra2 {[%clk 0:00:07]}  Rf8 {[%clk 0:00:06]} 96. Kg6 {[%clk 0:00:07]}  Ke4 {[%clk 0:00:07]} 97. Ra4+ {[%clk 0:00:07]}  Ke5 {[%clk 0:00:06]} 98. Ra6 {[%clk 0:00:08]}  Rf1 {[%clk 0:00:05]} 99. Ra5+ {[%clk 0:00:07]}  Ke6 {[%clk 0:00:05]} 100. Ra6+ {[%clk 0:00:07]}  Ke7 {[%clk 0:00:06]} 101. Ra7+ {[%clk 0:00:07]}  Kd6 {[%clk 0:00:06]} 102. Ra6+ {[%clk 0:00:07]}  Kc5 {[%clk 0:00:06]} 103. Rf6 {[%clk 0:00:07]}  Rg1+ {[%clk 0:00:06]} 104. Kf7 {[%clk 0:00:07]}  Rh1 {[%clk 0:00:06]} 105. Ke6 {[%clk 0:00:07]}  Rb1 {[%clk 0:00:06]} 106. Rf5+ {[%clk 0:00:07]}  Kc6 {[%clk 0:00:07]} 107. Rf6 {[%clk 0:00:08]}  Rb8 {[%clk 0:00:08]} 108. Ke7+ {[%clk 0:00:07]}  Kc5 {[%clk 0:00:09]} 109. Rf5+ {[%clk 0:00:07]}  Kc6 {[%clk 0:00:08]} 110. Ke6 {[%clk 0:00:07]}  Kc7 {[%clk 0:00:09]} 111. Rc5+ {[%clk 0:00:07]}  Kb6 {[%clk 0:00:09]} 112. Rc1 {[%clk 0:00:06]}  Re8+ {[%clk 0:00:10]} 113. Kd7 {[%clk 0:00:05]}  Re3 {[%clk 0:00:10]} 114. Kd6 {[%clk 0:00:05]} 1/2-1/2


[Site "https://www.chess.com"]

[Event "Titled Tuesday Blitz March 01 Early 2022"]
[White "Svane, Frederik"]
[Black "Karttunen, Mika"]
[WhiteFideId "12923044"]
[BlackFideId "502081"]
[WhiteElo "2459"]
[BlackElo "2343"]
[Result "1/2-1/2"]
[Round "02"]
[TimeControl "180+1"]
[Date "2022.03.01"]
[WhiteClock "0:00:12"]
[BlackClock "0:00:24"]

1. e4 {[%clk 0:03:00]}  e5 {[%clk 0:02:59]} 2. Bc4 {[%clk 0:02:59]}  Nc6 {[%clk 0:02:57]} 3. d3 {[%clk 0:02:59]}  Nf6 {[%clk 0:02:54]} 4. Nc3 {[%clk 0:02:56]}  Na5 {[%clk 0:02:39]} 5. Nge2 {[%clk 0:02:55]}  Be7 {[%clk 0:02:28]} 6. O-O {[%clk 0:02:52]}  O-O {[%clk 0:02:25]} 7. Ng3 {[%clk 0:02:46]}  c6 {[%clk 0:02:12]} 8. Nf5 {[%clk 0:02:31]}  Nxc4 {[%clk 0:01:57]} 9. dxc4 {[%clk 0:02:32]}  d6 {[%clk 0:01:57]} 10. Qf3 {[%clk 0:02:20]}  Bxf5 {[%clk 0:01:51]} 11. Qxf5 {[%clk 0:02:17]}  Qc8 {[%clk 0:01:46]} 12. Qf3 {[%clk 0:02:12]}  Qe6 {[%clk 0:01:40]} 13. b3 {[%clk 0:02:12]}  Nd7 {[%clk 0:01:39]} 14. Qf5 {[%clk 0:02:00]}  g6 {[%clk 0:01:27]} 15. Qxe6 {[%clk 0:01:59]}  fxe6 {[%clk 0:01:27]} 16. Be3 {[%clk 0:01:52]}  b6 {[%clk 0:01:06]} 17. a4 {[%clk 0:01:50]}  a5 {[%clk 0:01:03]} 18. Rad1 {[%clk 0:01:49]}  Rad8 {[%clk 0:01:02]} 19. Rd3 {[%clk 0:01:44]}  Kg7 {[%clk 0:01:00]} 20. Rfd1 {[%clk 0:01:44]}  Nc5 {[%clk 0:01:00]} 21. R3d2 {[%clk 0:01:26]}  h6 {[%clk 0:00:59]} 22. h3 {[%clk 0:01:19]}  g5 {[%clk 0:00:54]} 23. g4 {[%clk 0:01:16]}  Kg6 {[%clk 0:00:54]} 24. Kg2 {[%clk 0:01:16]}  h5 {[%clk 0:00:54]} 25. f3 {[%clk 0:01:16]}  h4 {[%clk 0:00:50]} 26. Ne2 {[%clk 0:01:12]}  Kf6 {[%clk 0:00:42]} 27. Nc1 {[%clk 0:01:11]}  Rb8 {[%clk 0:00:41]} 28. Rxd6 {[%clk 0:00:42]}  Bxd6 {[%clk 0:00:41]} 29. Rxd6 {[%clk 0:00:42]}  Rbc8 {[%clk 0:00:31]} 30. Bxc5 {[%clk 0:00:26]}  bxc5 {[%clk 0:00:31]} 31. Rd7 {[%clk 0:00:26]}  Rfd8 {[%clk 0:00:30]} 32. Rxd8 {[%clk 0:00:26]}  Rxd8 {[%clk 0:00:30]} 33. Nd3 {[%clk 0:00:27]}  Rxd3 {[%clk 0:00:14]} 34. cxd3 {[%clk 0:00:27]}  Ke7 {[%clk 0:00:14]} 35. Kf2 {[%clk 0:00:26]}  Kd6 {[%clk 0:00:14]} 36. Ke3 {[%clk 0:00:27]}  Ke7 {[%clk 0:00:14]} 37. Kd2 {[%clk 0:00:25]}  Kd6 {[%clk 0:00:14]} 38. Kc3 {[%clk 0:00:20]}  Kd7 {[%clk 0:00:15]} 39. Kc2 {[%clk 0:00:20]}  Kd6 {[%clk 0:00:15]} 40. Kd1 {[%clk 0:00:21]}  Kd7 {[%clk 0:00:15]} 41. Ke2 {[%clk 0:00:22]}  Kd6 {[%clk 0:00:16]} 42. Ke3 {[%clk 0:00:17]}  Ke7 {[%clk 0:00:16]} 43. Kd2 {[%clk 0:00:17]}  Kd6 {[%clk 0:00:17]} 44. Ke2 {[%clk 0:00:18]}  Ke7 {[%clk 0:00:17]} 45. Kd1 {[%clk 0:00:19]}  Kd6 {[%clk 0:00:18]} 46. Kc2 {[%clk 0:00:20]}  Ke7 {[%clk 0:00:18]} 47. Kc3 {[%clk 0:00:20]}  Kd6 {[%clk 0:00:19]} 48. Kb2 {[%clk 0:00:21]}  Ke7 {[%clk 0:00:20]} 49. Kc1 {[%clk 0:00:22]}  Kd6 {[%clk 0:00:20]} 50. Kd2 {[%clk 0:00:23]}  Ke7 {[%clk 0:00:21]} 51. Ke1 {[%clk 0:00:23]}  Kd6 {[%clk 0:00:21]} 52. Kf1 {[%clk 0:00:23]}  Ke7 {[%clk 0:00:22]} 53. Kg2 {[%clk 0:00:24]}  Kd6 {[%clk 0:00:23]} 54. Kg1 {[%clk 0:00:25]}  Ke7 {[%clk 0:00:23]} 55. Kf2 {[%clk 0:00:24]}  Kd6 {[%clk 0:00:23]} 56. Ke2 {[%clk 0:00:15]}  Ke7 {[%clk 0:00:24]} 57. Kd2 {[%clk 0:00:12]} 1/2-1/2


[Site "https://www.chess.com"]

[Event "Titled Tuesday Blitz March 01 Early 2022"]
[White "Tarasova, Viktoriya"]
[Black "Sychev, Klementy"]
[WhiteFideId "4175840"]
[BlackFideId "4114060"]
[WhiteElo "2182"]
[BlackElo "2564"]
[Result "0-1"]
[Round "02"]
[TimeControl "180+1"]
[Date "2022.03.01"]
[WhiteClock "0:01:58"]
[BlackClock "0:01:44"]

1. d4 {[%clk 0:02:46]}  e6 {[%clk 0:02:56]} 2. c4 {[%clk 0:02:46]}  b6 {[%clk 0:02:56]} 3. Nc3 {[%clk 0:02:41]}  Bb7 {[%clk 0:02:56]} 4. e4 {[%clk 0:02:41]}  Bb4 {[%clk 0:02:55]} 5. f3 {[%clk 0:02:42]}  f5 {[%clk 0:02:55]} 6. exf5 {[%clk 0:02:39]}  Nh6 {[%clk 0:02:54]} 7. fxe6 {[%clk 0:02:32]}  Nf5 {[%clk 0:02:54]} 8. Bf4 {[%clk 0:02:27]}  dxe6 {[%clk 0:02:47]} 9. Qa4+ {[%clk 0:02:25]}  Nc6 {[%clk 0:02:43]} 10. O-O-O {[%clk 0:02:25]}  Bxc3 {[%clk 0:02:39]} 11. bxc3 {[%clk 0:02:24]}  O-O {[%clk 0:02:39]} 12. Ne2 {[%clk 0:02:10]}  Na5 {[%clk 0:02:02]} 13. d5 {[%clk 0:02:06]}  exd5 {[%clk 0:02:00]} 14. cxd5 {[%clk 0:02:07]}  Qe8 {[%clk 0:01:46]} 15. Ng3 {[%clk 0:01:58]}  Qxa4 {[%clk 0:01:44]} 0-1


[Site "https://www.chess.com"]